[Event "Titled Tuesday Blitz May 24 Late 2022"]
[White "Proudian, Armen"]
[Black "Roman, Rodrigo"]
[WhiteFideId "2130734"]
[BlackFideId "3701220"]
[WhiteElo "2380"]
[BlackElo "2001"]
[Result "1-0"]
[Round "08"]
[TimeControl "180+1"]
[Date "2022.05.25"]
[WhiteClock "0:00:50"]
[BlackClock "0:00:14"]

1. e4 {[%clk 0:03:00]}  e6 {[%clk 0:02:59]} 2. d4 {[%clk 0:02:59]}  d5 {[%clk 0:02:59]} 3. exd5 {[%clk 0:03:00]}  exd5 {[%clk 0:03:00]} 4. Bd3 {[%clk 0:03:01]}  Nf6 {[%clk 0:03:01]} 5. h3 {[%clk 0:03:00]}  Be7 {[%clk 0:03:01]} 6. Qf3 {[%clk 0:03:01]}  c6 {[%clk 0:02:57]} 7. Ne2 {[%clk 0:03:01]}  Nbd7 {[%clk 0:02:44]} 8. Bf4 {[%clk 0:02:59]}  Qb6 {[%clk 0:02:43]} 9. Nd2 {[%clk 0:02:55]}  Qxb2 {[%clk 0:02:35]} 10. O-O {[%clk 0:02:53]}  Nf8 {[%clk 0:02:28]} 11. Rfe1 {[%clk 0:02:52]}  Ne6 {[%clk 0:02:26]} 12. Rab1 {[%clk 0:02:50]}  Qxa2 {[%clk 0:02:24]} 13. Be5 {[%clk 0:02:42]}  Qa5 {[%clk 0:02:18]} 14. Nb3 {[%clk 0:02:40]}  Qd8 {[%clk 0:02:14]} 15. g4 {[%clk 0:02:37]}  h6 {[%clk 0:02:10]} 16. Nf4 {[%clk 0:02:34]}  O-O {[%clk 0:02:02]} 17. Re2 {[%clk 0:02:08]}  b6 {[%clk 0:01:59]} 18. Rbe1 {[%clk 0:02:07]}  Bd6 {[%clk 0:01:46]} 19. Ng2 {[%clk 0:01:42]}  Ng5 {[%clk 0:01:38]} 20. Qg3 {[%clk 0:01:41]}  Bxe5 {[%clk 0:01:33]} 21. dxe5 {[%clk 0:01:33]}  Nfe4 {[%clk 0:01:30]} 22. Qe3 {[%clk 0:01:33]}  Nc3 {[%clk 0:01:18]} 23. Rd2 {[%clk 0:01:26]}  c5 {[%clk 0:01:08]} 24. f4 {[%clk 0:01:24]}  d4 {[%clk 0:01:02]} 25. Qg3 {[%clk 0:01:23]}  Ne6 {[%clk 0:00:58]} 26. f5 {[%clk 0:01:20]}  Nc7 {[%clk 0:00:46]} 27. h4 {[%clk 0:01:15]}  Bb7 {[%clk 0:00:42]} 28. g5 {[%clk 0:01:14]}  hxg5 {[%clk 0:00:40]} 29. hxg5 {[%clk 0:01:15]}  Qd5 {[%clk 0:00:28]} 30. g6 {[%clk 0:00:51]}  fxg6 {[%clk 0:00:26]} 31. Qxg6 {[%clk 0:00:51]}  c4 {[%clk 0:00:19]} 32. f6 {[%clk 0:00:51]}  Rf7 {[%clk 0:00:14]} 33. Qh7+ {[%clk 0:00:49]}  Kf8 {[%clk 0:00:14]} 34. Qh8# {[%clk 0:00:50]} 1-0


[Site "https://www.chess.com"]

[Event "Titled Tuesday Blitz May 24 Late 2022"]
[White "Redor, Menandro"]
[Black "Zherebtsova, Alexandra"]
[WhiteFideId "5222010"]
[BlackFideId "24129518"]
[WhiteElo "1986"]
[BlackElo "2025"]
[Result "0-1"]
[Round "08"]
[TimeControl "180+1"]
[Date "2022.05.25"]
[WhiteClock "0:00:02"]
[BlackClock "0:00:17"]

1. d4 {[%clk 0:02:48]}  d5 {[%clk 0:02:59]} 2. Bf4 {[%clk 0:02:21]}  Nf6 {[%clk 0:02:57]} 3. e3 {[%clk 0:02:21]}  c5 {[%clk 0:02:57]} 4. c3 {[%clk 0:02:22]}  Nc6 {[%clk 0:02:56]} 5. Nd2 {[%clk 0:02:20]}  Bf5 {[%clk 0:02:47]} 6. Ngf3 {[%clk 0:02:16]}  h6 {[%clk 0:02:40]} 7. Qa4 {[%clk 0:02:14]}  Qb6 {[%clk 0:02:28]} 8. Bb5 {[%clk 0:02:03]}  Bd7 {[%clk 0:01:59]} 9. dxc5 {[%clk 0:01:53]}  Qxc5 {[%clk 0:01:56]} 10. O-O {[%clk 0:01:48]}  a6 {[%clk 0:01:55]} 11. Bxc6 {[%clk 0:01:47]}  Bxc6 {[%clk 0:01:53]} 12. Qd1 {[%clk 0:01:46]}  e6 {[%clk 0:01:45]} 13. Nd4 {[%clk 0:01:38]}  Be7 {[%clk 0:01:39]} 14. a4 {[%clk 0:01:26]}  a5 {[%clk 0:01:19]} 15. N2b3 {[%clk 0:01:13]}  Qb6 {[%clk 0:01:18]} 16. h3 {[%clk 0:01:04]}  O-O {[%clk 0:01:18]} 17. Bg3 {[%clk 0:01:01]}  Ne4 {[%clk 0:01:11]} 18. Bh2 {[%clk 0:00:54]}  Bd7 {[%clk 0:01:06]} 19. Nd2 {[%clk 0:00:48]}  Nc5 {[%clk 0:01:02]} 20. b3 {[%clk 0:00:26]}  Rfd8 {[%clk 0:01:00]} 21. Rc1 {[%clk 0:00:22]}  Be8 {[%clk 0:00:59]} 22. Qe2 {[%clk 0:00:20]}  f6 {[%clk 0:00:47]} 23. f4 {[%clk 0:00:18]}  f5 {[%clk 0:00:40]} 24. c4 {[%clk 0:00:17]}  Ne4 {[%clk 0:00:35]} 25. cxd5 {[%clk 0:00:16]}  Nxd2 {[%clk 0:00:31]} 26. Qxd2 {[%clk 0:00:15]}  Bb4 {[%clk 0:00:29]} 27. Qc2 {[%clk 0:00:12]}  Rxd5 {[%clk 0:00:29]} 28. Qc7 {[%clk 0:00:09]}  Qa6 {[%clk 0:00:19]} 29. Bg3 {[%clk 0:00:02]}  Bd2 {[%clk 0:00:17]} 0-1


[Site "https://www.chess.com"]

[Event "Titled Tuesday Blitz May 24 Late 2022"]
[White "Roque Sola, Jose Luis"]
[Black "Jorquera, Marcelo"]
[WhiteFideId "5120390"]
[BlackFideId "3401197"]
[WhiteElo "1983"]
[BlackElo "2136"]
[Result "0-1"]
[Round "08"]
[TimeControl "180+1"]
[Date "2022.05.25"]
[WhiteClock "0:01:03"]
[BlackClock "0:01:00"]

1. c4 {[%clk 0:02:57]}  Nf6 {[%clk 0:02:58]} 2. Nc3 {[%clk 0:02:56]}  g6 {[%clk 0:02:58]} 3. Nf3 {[%clk 0:02:56]}  Bg7 {[%clk 0:02:58]} 4. g3 {[%clk 0:02:56]}  O-O {[%clk 0:02:57]} 5. Bg2 {[%clk 0:02:57]}  d6 {[%clk 0:02:55]} 6. O-O {[%clk 0:02:55]}  Nc6 {[%clk 0:02:51]} 7. Rb1 {[%clk 0:02:54]}  a5 {[%clk 0:02:49]} 8. a3 {[%clk 0:02:54]}  e5 {[%clk 0:02:46]} 9. d3 {[%clk 0:02:51]}  h6 {[%clk 0:02:19]} 10. b4 {[%clk 0:02:49]}  axb4 {[%clk 0:02:19]} 11. axb4 {[%clk 0:02:49]}  Be6 {[%clk 0:02:17]} 12. Nd2 {[%clk 0:02:26]}  Qd7 {[%clk 0:02:09]} 13. Re1 {[%clk 0:02:23]}  Ne8 {[%clk 0:01:57]} 14. Nd5 {[%clk 0:02:16]}  f5 {[%clk 0:01:53]} 15. b5 {[%clk 0:02:08]}  Nd8 {[%clk 0:01:48]} 16. Bb2 {[%clk 0:02:08]}  g5 {[%clk 0:01:40]} 17. Ra1 {[%clk 0:02:06]}  Rxa1 {[%clk 0:01:37]} 18. Qxa1 {[%clk 0:02:07]}  c6 {[%clk 0:01:23]} 19. bxc6 {[%clk 0:01:33]}  bxc6 {[%clk 0:01:24]} 20. Nb4 {[%clk 0:01:30]}  d5 {[%clk 0:01:15]} 21. Qa6 {[%clk 0:01:12]}  e4 {[%clk 0:01:06]} 22. cxd5 {[%clk 0:01:04]}  cxd5 {[%clk 0:01:05]} 23. Rc1 {[%clk 0:01:03]}  Bxb2 {[%clk 0:01:00]} 0-1


[Site "https://www.chess.com"]

[Event "Titled Tuesday Blitz May 24 Late 2022"]
[White "Roux, Baptiste"]
[Black "Levine, David"]
[WhiteFideId "36017450"]
[BlackFideId "2011611"]
[WhiteElo "1935"]
[BlackElo "2138"]
[Result "0-1"]
[Round "08"]
[TimeControl "180+1"]
[Date "2022.05.25"]
[WhiteClock "0:00:01"]
[BlackClock "0:00:05"]

1. e4 {[%clk 0:03:00]}  e5 {[%clk 0:02:59]} 2. Nf3 {[%clk 0:02:54]}  Nc6 {[%clk 0:02:56]} 3. Bb5 {[%clk 0:02:54]}  a6 {[%clk 0:02:56]} 4. Ba4 {[%clk 0:02:54]}  Nf6 {[%clk 0:02:56]} 5. O-O {[%clk 0:02:53]}  Be7 {[%clk 0:02:56]} 6. Re1 {[%clk 0:02:54]}  b5 {[%clk 0:02:55]} 7. Bb3 {[%clk 0:02:54]}  d6 {[%clk 0:02:56]} 8. c3 {[%clk 0:02:54]}  O-O {[%clk 0:02:55]} 9. d4 {[%clk 0:02:55]}  Bg4 {[%clk 0:02:53]} 10. Be3 {[%clk 0:02:55]}  exd4 {[%clk 0:02:42]} 11. cxd4 {[%clk 0:02:56]}  d5 {[%clk 0:02:42]} 12. e5 {[%clk 0:02:55]}  Ne4 {[%clk 0:02:42]} 13. Nbd2 {[%clk 0:02:56]}  f5 {[%clk 0:02:38]} 14. exf6 {[%clk 0:02:25]}  Nxf6 {[%clk 0:02:36]} 15. h3 {[%clk 0:02:14]}  Bf5 {[%clk 0:02:18]} 16. Nh4 {[%clk 0:02:10]}  Bd7 {[%clk 0:02:13]} 17. Qf3 {[%clk 0:02:03]}  Nb4 {[%clk 0:01:41]} 18. Nf5 {[%clk 0:01:40]}  Nd3 {[%clk 0:01:26]} 19. Re2 {[%clk 0:01:20]}  Bxf5 {[%clk 0:01:21]} 20. Qxf5 {[%clk 0:01:18]}  Nxb2 {[%clk 0:01:21]} 21. Bg5 {[%clk 0:01:11]}  Nc4 {[%clk 0:01:19]} 22. Qe6+ {[%clk 0:01:02]}  Rf7 {[%clk 0:01:17]} 23. Bxc4 {[%clk 0:00:54]}  dxc4 {[%clk 0:01:06]} 24. Nf3 {[%clk 0:00:44]}  Bd6 {[%clk 0:01:02]} 25. Bxf6 {[%clk 0:00:29]}  Qxf6 {[%clk 0:01:00]} 26. Qd5 {[%clk 0:00:29]}  Rf8 {[%clk 0:00:29]} 27. Ng5 {[%clk 0:00:27]}  c6 {[%clk 0:00:24]} 28. Qe6 {[%clk 0:00:14]}  Qxe6 {[%clk 0:00:21]} 29. Rxe6 {[%clk 0:00:14]}  Rf6 {[%clk 0:00:21]} 30. Rae1 {[%clk 0:00:11]}  h6 {[%clk 0:00:21]} 31. Rxf6 {[%clk 0:00:08]}  Rxf6 {[%clk 0:00:21]} 32. Ne4 {[%clk 0:00:09]}  Re6 {[%clk 0:00:20]} 33. Re3 {[%clk 0:00:10]}  Kf7 {[%clk 0:00:20]} 34. g3 {[%clk 0:00:06]}  Be7 {[%clk 0:00:18]} 35. f4 {[%clk 0:00:06]}  g6 {[%clk 0:00:16]} 36. Kg2 {[%clk 0:00:06]}  b4 {[%clk 0:00:13]} 37. Kf3 {[%clk 0:00:06]}  c3 {[%clk 0:00:13]} 38. Re2 {[%clk 0:00:07]}  a5 {[%clk 0:00:12]} 39. g4 {[%clk 0:00:06]}  Bf8 {[%clk 0:00:11]} 40. f5 {[%clk 0:00:06]}  gxf5 {[%clk 0:00:10]} 41. gxf5 {[%clk 0:00:07]}  Re8 {[%clk 0:00:10]} 42. Kf4 {[%clk 0:00:04]}  a4 {[%clk 0:00:08]} 43. Kf3 {[%clk 0:00:04]}  Rc8 {[%clk 0:00:07]} 44. Nc5 {[%clk 0:00:03]}  Bxc5 {[%clk 0:00:06]} 45. dxc5 {[%clk 0:00:04]}  b3 {[%clk 0:00:07]} 46. Ke3 {[%clk 0:00:01]}  b2 {[%clk 0:00:05]} 0-1


[Site "https://www.chess.com"]

[Event "Titled Tuesday Blitz May 24 Late 2022"]
[White "Rustemov, Alexander"]
[Black "Gong, Patrick"]
[WhiteFideId "4119002"]
[BlackFideId "3222500"]
[WhiteElo "2839"]
[BlackElo "2103"]
[Result "1-0"]
[Round "08"]
[TimeControl "180+1"]
[Date "2022.05.24"]
[WhiteClock "0:00:38"]
[BlackClock "0:00:02"]

1. d4 {[%clk 0:03:00]}  Nf6 {[%clk 0:02:59]} 2. c4 {[%clk 0:03:00]}  c5 {[%clk 0:03:00]} 3. Nf3 {[%clk 0:02:57]}  cxd4 {[%clk 0:02:58]} 4. Nxd4 {[%clk 0:02:58]}  e5 {[%clk 0:02:58]} 5. Nb5 {[%clk 0:02:58]}  d6 {[%clk 0:02:59]} 6. N1c3 {[%clk 0:02:49]}  a6 {[%clk 0:02:58]} 7. Na3 {[%clk 0:02:48]}  Be7 {[%clk 0:02:55]} 8. g3 {[%clk 0:02:48]}  O-O {[%clk 0:02:51]} 9. Bg2 {[%clk 0:02:48]}  Nc6 {[%clk 0:02:51]} 10. O-O {[%clk 0:02:48]}  Be6 {[%clk 0:02:51]} 11. b3 {[%clk 0:02:48]}  Rc8 {[%clk 0:02:48]} 12. Bb2 {[%clk 0:02:48]}  Ne8 {[%clk 0:02:28]} 13. Nd5 {[%clk 0:02:43]}  f5 {[%clk 0:02:26]} 14. Qd2 {[%clk 0:02:39]}  Bg5 {[%clk 0:02:17]} 15. e3 {[%clk 0:02:37]}  Ne7 {[%clk 0:02:05]} 16. Rad1 {[%clk 0:02:35]}  Nxd5 {[%clk 0:01:59]} 17. Bxd5 {[%clk 0:02:34]}  Qe7 {[%clk 0:01:56]} 18. Nc2 {[%clk 0:02:28]}  Bxd5 {[%clk 0:01:48]} 19. Qxd5+ {[%clk 0:02:27]}  Kh8 {[%clk 0:01:48]} 20. Nb4 {[%clk 0:02:27]}  b5 {[%clk 0:01:11]} 21. cxb5 {[%clk 0:02:23]}  Rc5 {[%clk 0:01:10]} 22. Qd3 {[%clk 0:02:16]}  axb5 {[%clk 0:01:09]} 23. Nd5 {[%clk 0:02:15]}  Qb7 {[%clk 0:01:07]} 24. f4 {[%clk 0:02:05]}  Nf6 {[%clk 0:00:40]} 25. Nb4 {[%clk 0:01:50]}  exf4 {[%clk 0:00:37]} 26. exf4 {[%clk 0:01:50]}  Bh6 {[%clk 0:00:33]} 27. Qxd6 {[%clk 0:01:51]}  Rcc8 {[%clk 0:00:28]} 28. Bd4 {[%clk 0:01:25]}  Ne4 {[%clk 0:00:27]} 29. Qb6 {[%clk 0:01:19]}  Qe7 {[%clk 0:00:19]} 30. Qxb5 {[%clk 0:01:15]}  Rb8 {[%clk 0:00:18]} 31. Nc6 {[%clk 0:01:15]}  Rxb5 {[%clk 0:00:14]} 32. Nxe7 {[%clk 0:01:15]}  Ra8 {[%clk 0:00:14]} 33. Rfe1 {[%clk 0:01:04]}  Rxa2 {[%clk 0:00:13]} 34. Nxf5 {[%clk 0:01:04]}  Rxf5 {[%clk 0:00:07]} 35. Rxe4 {[%clk 0:01:04]}  Rf8 {[%clk 0:00:07]} 36. b4 {[%clk 0:00:46]}  Kg8 {[%clk 0:00:07]} 37. Rb1 {[%clk 0:00:45]}  Rd8 {[%clk 0:00:06]} 38. b5 {[%clk 0:00:42]}  Ra4 {[%clk 0:00:06]} 39. b6 {[%clk 0:00:39]}  g6 {[%clk 0:00:02]} 40. b7 {[%clk 0:00:38]} 1-0


[Site "https://www.chess.com"]

[Event "Titled Tuesday Blitz May 24 Late 2022"]
[White "Rychagov, Andrey"]
[Black "Pesotskiy, Mikhail"]
[WhiteFideId "4119932"]
[BlackFideId "34164453"]
[WhiteElo "2500"]
[BlackElo "2010"]
[Result "1-0"]
[Round "08"]
[TimeControl "180+1"]
[Date "2022.05.24"]
[WhiteClock "0:00:20"]
[BlackClock "0:00:02"]

1. d4 {[%clk 0:02:57]}  Nf6 {[%clk 0:02:59]} 2. c4 {[%clk 0:02:57]}  e6 {[%clk 0:03:00]} 3. Nf3 {[%clk 0:02:57]}  Bb4+ {[%clk 0:03:00]} 4. Bd2 {[%clk 0:02:56]}  a5 {[%clk 0:03:01]} 5. e3 {[%clk 0:02:55]}  b6 {[%clk 0:03:01]} 6. Nc3 {[%clk 0:02:55]}  Bb7 {[%clk 0:03:02]} 7. Bd3 {[%clk 0:02:54]}  O-O {[%clk 0:03:01]} 8. O-O {[%clk 0:02:54]}  d6 {[%clk 0:03:01]} 9. Qe2 {[%clk 0:02:51]}  Nbd7 {[%clk 0:03:01]} 10. e4 {[%clk 0:02:48]}  e5 {[%clk 0:03:01]} 11. d5 {[%clk 0:02:47]}  Nh5 {[%clk 0:02:54]} 12. g3 {[%clk 0:02:47]}  Nc5 {[%clk 0:02:44]} 13. Bc2 {[%clk 0:02:46]}  g6 {[%clk 0:02:37]} 14. Ne1 {[%clk 0:02:26]}  Bc8 {[%clk 0:02:35]} 15. Nd3 {[%clk 0:02:18]}  f5 {[%clk 0:01:59]} 16. Nxc5 {[%clk 0:02:10]}  Bxc5 {[%clk 0:01:56]} 17. exf5 {[%clk 0:02:08]}  Bxf5 {[%clk 0:01:49]} 18. Bxf5 {[%clk 0:02:04]}  Rxf5 {[%clk 0:01:50]} 19. Ne4 {[%clk 0:02:00]}  Qe7 {[%clk 0:01:40]} 20. Rae1 {[%clk 0:01:57]}  Raf8 {[%clk 0:01:38]} 21. Kg2 {[%clk 0:01:56]}  Kg7 {[%clk 0:01:27]} 22. Bc3 {[%clk 0:01:44]}  Bb4 {[%clk 0:00:59]} 23. Bxb4 {[%clk 0:01:32]}  axb4 {[%clk 0:01:00]} 24. Qd2 {[%clk 0:01:31]}  Rf3 {[%clk 0:00:55]} 25. Qxb4 {[%clk 0:01:26]}  h6 {[%clk 0:00:30]} 26. Qd2 {[%clk 0:01:23]}  Qd7 {[%clk 0:00:29]} 27. Re3 {[%clk 0:01:07]}  Qg4 {[%clk 0:00:28]} 28. Qd1 {[%clk 0:00:35]}  Nf4+ {[%clk 0:00:07]} 29. Kh1 {[%clk 0:00:35]}  Nh3 {[%clk 0:00:07]} 30. Nd2 {[%clk 0:00:25]}  Rxf2 {[%clk 0:00:03]} 31. Qxg4 {[%clk 0:00:25]}  Rxf1+ {[%clk 0:00:03]} 32. Kg2 {[%clk 0:00:25]}  Ng5 {[%clk 0:00:02]} 33. Re2 {[%clk 0:00:20]} 1-0


[Site "https://www.chess.com"]

[Event "Titled Tuesday Blitz May 24 Late 2022"]
[White "Santos Ruiz, Miguel"]
[Black "Gurevich, Dmitry"]
[WhiteFideId "22291482"]
[BlackFideId "2000407"]
[WhiteElo "2780"]
[BlackElo "2590"]
[Result "1-0"]
[Round "08"]
[TimeControl "180+1"]
[Date "2022.05.25"]
[WhiteClock "0:00:14"]
[BlackClock "0:00:02"]

1. b3 {[%clk 0:03:00]}  d5 {[%clk 0:02:58]} 2. Bb2 {[%clk 0:03:01]}  c5 {[%clk 0:02:58]} 3. e3 {[%clk 0:03:00]}  a6 {[%clk 0:02:57]} 4. Nf3 {[%clk 0:02:58]}  Nc6 {[%clk 0:02:57]} 5. d4 {[%clk 0:02:49]}  Bg4 {[%clk 0:02:56]} 6. dxc5 {[%clk 0:02:48]}  e6 {[%clk 0:02:53]} 7. c4 {[%clk 0:02:40]}  Nf6 {[%clk 0:02:50]} 8. Nc3 {[%clk 0:02:39]}  dxc4 {[%clk 0:02:38]} 9. Bxc4 {[%clk 0:02:37]}  Bxc5 {[%clk 0:02:31]} 10. h3 {[%clk 0:02:33]}  Bh5 {[%clk 0:02:25]} 11. g4 {[%clk 0:02:16]}  Bg6 {[%clk 0:02:24]} 12. Nh4 {[%clk 0:02:06]}  O-O {[%clk 0:02:17]} 13. Nxg6 {[%clk 0:02:01]}  hxg6 {[%clk 0:02:17]} 14. Qxd8 {[%clk 0:02:01]}  Rfxd8 {[%clk 0:02:16]} 15. g5 {[%clk 0:01:55]}  b5 {[%clk 0:02:02]} 16. Be2 {[%clk 0:01:49]}  Nd7 {[%clk 0:01:51]} 17. Ne4 {[%clk 0:01:41]}  Bb4+ {[%clk 0:01:48]} 18. Kf1 {[%clk 0:01:41]}  Rac8 {[%clk 0:01:38]} 19. Kg2 {[%clk 0:01:38]}  Nc5 {[%clk 0:01:30]} 20. Nxc5 {[%clk 0:01:35]}  Bxc5 {[%clk 0:01:29]} 21. Rhd1 {[%clk 0:01:30]}  Be7 {[%clk 0:01:24]} 22. h4 {[%clk 0:01:24]}  Nb4 {[%clk 0:01:24]} 23. a3 {[%clk 0:01:05]}  Rc2 {[%clk 0:00:58]} 24. Rxd8+ {[%clk 0:00:46]}  Bxd8 {[%clk 0:00:57]} 25. axb4 {[%clk 0:00:46]}  Rxb2 {[%clk 0:00:39]} 26. Kf3 {[%clk 0:00:45]}  Rxb3 {[%clk 0:00:33]} 27. Rxa6 {[%clk 0:00:45]}  Be7 {[%clk 0:00:31]} 28. Ra8+ {[%clk 0:00:39]}  Bf8 {[%clk 0:00:31]} 29. Bxb5 {[%clk 0:00:38]}  Rxb4 {[%clk 0:00:30]} 30. Be8 {[%clk 0:00:37]}  Rb7 {[%clk 0:00:30]} 31. Rc8 {[%clk 0:00:34]}  Kh7 {[%clk 0:00:26]} 32. Bc6 {[%clk 0:00:34]}  Rb6 {[%clk 0:00:21]} 33. Be4 {[%clk 0:00:32]}  Bd6 {[%clk 0:00:13]} 34. h5 {[%clk 0:00:31]}  Rb5 {[%clk 0:00:13]} 35. hxg6+ {[%clk 0:00:29]}  fxg6 {[%clk 0:00:11]} 36. Kg4 {[%clk 0:00:27]}  Rb2 {[%clk 0:00:10]} 37. f4 {[%clk 0:00:24]}  Re2 {[%clk 0:00:09]} 38. Kf3 {[%clk 0:00:24]}  Re1 {[%clk 0:00:08]} 39. Rc6 {[%clk 0:00:22]}  Rd1 {[%clk 0:00:08]} 40. Rc2 {[%clk 0:00:20]}  Bb4 {[%clk 0:00:07]} 41. Rh2+ {[%clk 0:00:20]}  Kg8 {[%clk 0:00:05]} 42. Bxg6 {[%clk 0:00:21]}  e5 {[%clk 0:00:05]} 43. Rc2 {[%clk 0:00:20]}  exf4 {[%clk 0:00:02]} 44. Rc8+ {[%clk 0:00:20]}  Bf8 {[%clk 0:00:02]} 45. exf4 {[%clk 0:00:19]}  Rf1+ {[%clk 0:00:03]} 46. Kg4 {[%clk 0:00:19]}  Rg1+ {[%clk 0:00:02]} 47. Kf5 {[%clk 0:00:19]}  Rf1 {[%clk 0:00:03]} 48. Ra8 {[%clk 0:00:19]}  Re1 {[%clk 0:00:02]} 49. Bh5 {[%clk 0:00:17]}  Re7 {[%clk 0:00:02]} 50. Bg4 {[%clk 0:00:17]}  Rf7+ {[%clk 0:00:02]} 51. Kg6 {[%clk 0:00:17]}  Re7 {[%clk 0:00:02]} 52. Bh3 {[%clk 0:00:15]}  Re4 {[%clk 0:00:03]} 53. Bg2 {[%clk 0:00:13]}  Rxf4 {[%clk 0:00:02]} 54. Bd5+ {[%clk 0:00:14]}  Kh8 {[%clk 0:00:02]} 55. Bf7 {[%clk 0:00:14]} 1-0


[Site "https://www.chess.com"]

[Event "Titled Tuesday Blitz May 24 Late 2022"]
[White "Sargsyan, Anna M."]
[Black "Kaasen, Tor Fredrik"]
[WhiteFideId "13308130"]
[BlackFideId "1516647"]
[WhiteElo "2271"]
[BlackElo "2335"]
[Result "1-0"]
[Round "08"]
[TimeControl "180+1"]
[Date "2022.05.24"]
[WhiteClock "0:00:49"]
[BlackClock "0:00:02"]

1. d4 {[%clk 0:02:55]}  d5 {[%clk 0:03:00]} 2. c4 {[%clk 0:02:55]}  c6 {[%clk 0:03:01]} 3. Nf3 {[%clk 0:02:55]}  Nf6 {[%clk 0:03:01]} 4. Nc3 {[%clk 0:02:56]}  e6 {[%clk 0:03:02]} 5. e3 {[%clk 0:02:55]}  Nbd7 {[%clk 0:03:00]} 6. Bd3 {[%clk 0:02:54]}  dxc4 {[%clk 0:03:01]} 7. Bxc4 {[%clk 0:02:55]}  b5 {[%clk 0:03:01]} 8. Bd3 {[%clk 0:02:55]}  Bb7 {[%clk 0:03:02]} 9. a4 {[%clk 0:02:51]}  b4 {[%clk 0:03:02]} 10. Ne4 {[%clk 0:02:51]}  c5 {[%clk 0:03:01]} 11. Ned2 {[%clk 0:02:48]}  cxd4 {[%clk 0:02:58]} 12. exd4 {[%clk 0:02:47]}  Be7 {[%clk 0:02:55]} 13. O-O {[%clk 0:02:46]}  O-O {[%clk 0:02:56]} 14. Qe2 {[%clk 0:02:46]}  a5 {[%clk 0:02:47]} 15. Nc4 {[%clk 0:02:41]}  Nb6 {[%clk 0:02:43]} 16. Nce5 {[%clk 0:02:37]}  Rc8 {[%clk 0:02:39]} 17. Bg5 {[%clk 0:02:31]}  h6 {[%clk 0:02:36]} 18. Bh4 {[%clk 0:02:29]}  Nh5 {[%clk 0:02:32]} 19. Bg3 {[%clk 0:02:21]}  Bf6 {[%clk 0:02:28]} 20. Rad1 {[%clk 0:02:17]}  Nxg3 {[%clk 0:02:25]} 21. hxg3 {[%clk 0:02:17]}  Nxa4 {[%clk 0:02:23]} 22. Bb1 {[%clk 0:02:10]}  Qc7 {[%clk 0:01:45]} 23. Ng4 {[%clk 0:02:03]}  Be7 {[%clk 0:01:25]} 24. Nfe5 {[%clk 0:02:03]}  f5 {[%clk 0:01:17]} 25. Ng6 {[%clk 0:01:26]}  fxg4 {[%clk 0:01:15]} 26. Qxe6+ {[%clk 0:01:25]}  Rf7 {[%clk 0:01:04]} 27. Rc1 {[%clk 0:01:07]}  Qd8 {[%clk 0:00:17]} 28. Ba2 {[%clk 0:01:07]}  Bf6 {[%clk 0:00:06]} 29. Qxf7+ {[%clk 0:01:06]}  Kh7 {[%clk 0:00:06]} 30. Qxb7 {[%clk 0:00:58]}  Rxc1 {[%clk 0:00:05]} 31. Rxc1 {[%clk 0:00:59]}  Qxd4 {[%clk 0:00:03]} 32. Nf8+ {[%clk 0:00:51]}  Kh8 {[%clk 0:00:02]} 33. Qc8 {[%clk 0:00:49]}  Qd8 {[%clk 0:00:01]} 34. Qxd8 {[%clk 0:00:49]}  Bxd8 {[%clk 0:00:02]} 35. Rc8 {[%clk 0:00:49]} 1-0


[Site "https://www.chess.com"]

[Event "Titled Tuesday Blitz May 24 Late 2022"]
[White "Seletsky, Grigory"]
[Black "Kim, Sergey"]
[WhiteFideId "14112191"]
[BlackFideId "13700570"]
[WhiteElo "2492"]
[BlackElo "2537"]
[Result "0-1"]
[Round "08"]
[TimeControl "180+1"]
[Date "2022.05.25"]
[WhiteClock "0:00:17"]
[BlackClock "0:01:01"]

1. e4 {[%clk 0:02:58]}  e5 {[%clk 0:02:59]} 2. Nf3 {[%clk 0:02:57]}  Nc6 {[%clk 0:02:59]} 3. Bc4 {[%clk 0:02:56]}  Bc5 {[%clk 0:02:58]} 4. c3 {[%clk 0:02:54]}  Nf6 {[%clk 0:02:58]} 5. d3 {[%clk 0:02:54]}  d6 {[%clk 0:02:58]} 6. Nbd2 {[%clk 0:02:51]}  a6 {[%clk 0:02:59]} 7. Bb3 {[%clk 0:02:49]}  Ba7 {[%clk 0:02:58]} 8. Nf1 {[%clk 0:02:44]}  Be6 {[%clk 0:02:54]} 9. Ng3 {[%clk 0:02:43]}  h6 {[%clk 0:02:52]} 10. h3 {[%clk 0:02:41]}  O-O {[%clk 0:02:51]} 11. O-O {[%clk 0:02:41]}  Ne7 {[%clk 0:02:50]} 12. d4 {[%clk 0:02:40]}  Ng6 {[%clk 0:02:47]} 13. dxe5 {[%clk 0:02:34]}  dxe5 {[%clk 0:02:47]} 14. Qxd8 {[%clk 0:02:31]}  Rfxd8 {[%clk 0:02:46]} 15. Bxe6 {[%clk 0:02:26]}  fxe6 {[%clk 0:02:46]} 16. Be3 {[%clk 0:02:26]}  Bxe3 {[%clk 0:02:38]} 17. fxe3 {[%clk 0:02:25]}  Nd7 {[%clk 0:02:32]} 18. Rfd1 {[%clk 0:02:08]}  Nc5 {[%clk 0:02:32]} 19. b3 {[%clk 0:02:01]}  a5 {[%clk 0:02:27]} 20. Kf1 {[%clk 0:02:00]}  a4 {[%clk 0:02:14]} 21. b4 {[%clk 0:01:58]}  Nd3 {[%clk 0:02:11]} 22. Ke2 {[%clk 0:01:50]}  Nb2 {[%clk 0:02:09]} 23. Rxd8+ {[%clk 0:01:39]}  Rxd8 {[%clk 0:02:10]} 24. Nd2 {[%clk 0:01:26]}  Nh4 {[%clk 0:02:06]} 25. a3 {[%clk 0:00:59]}  b5 {[%clk 0:01:55]} 26. Rb1 {[%clk 0:00:53]}  Nc4 {[%clk 0:01:51]} 27. Nxc4 {[%clk 0:00:41]}  bxc4 {[%clk 0:01:51]} 28. b5 {[%clk 0:00:36]}  Rd3 {[%clk 0:01:48]} 29. b6 {[%clk 0:00:30]}  cxb6 {[%clk 0:01:47]} 30. Rxb6 {[%clk 0:00:29]}  Rxc3 {[%clk 0:01:47]} 31. Rxe6 {[%clk 0:00:26]}  Nxg2 {[%clk 0:01:44]} 32. Nf5 {[%clk 0:00:25]}  Rxa3 {[%clk 0:01:33]} 33. Rg6 {[%clk 0:00:25]}  Ra2+ {[%clk 0:01:30]} 34. Kf1 {[%clk 0:00:21]}  c3 {[%clk 0:01:26]} 35. Rxg7+ {[%clk 0:00:20]}  Kf8 {[%clk 0:01:13]} 36. Rc7 {[%clk 0:00:19]}  c2 {[%clk 0:01:04]} 37. h4 {[%clk 0:00:14]}  Ra1+ {[%clk 0:01:03]} 38. Kxg2 {[%clk 0:00:14]}  c1=Q {[%clk 0:01:04]} 39. Rxc1 {[%clk 0:00:14]}  Rxc1 {[%clk 0:01:04]} 40. Nxh6 {[%clk 0:00:15]}  a3 {[%clk 0:01:04]} 41. Nf5 {[%clk 0:00:15]}  a2 {[%clk 0:01:04]} 42. h5 {[%clk 0:00:16]}  a1=Q {[%clk 0:01:03]} 43. h6 {[%clk 0:00:17]}  Qb2+ {[%clk 0:01:01]} 0-1


[Site "https://www.chess.com"]